bitfinex/quotes_ETHUSD_20250905
["timestamp","ask_amount","ask_price","bid_price","bid_amount"]
[1757048513592,5.89928813,4337.1,4337.0,0.21479373]
[1757048513809,2.30584762,4336.8,4336.7,1.699]
[1757048514111,2.30584762,4336.8,4336.3,0.004]
[1757048514112,2.30598326,4336.6,4336.3,3.848]
[1757048514284,0.1152,4336.5,4336.4,0.21468735]
[1757048514488,0.1152,4336.5,4336.4,0.95378735]
[1757048514807,0.1152,4336.5,4336.4,0.95378258]
[1757048515013,2.42120714,4336.5,4336.4,0.51618258]
[1757048515178,5.52020714,4336.5,4336.4,0.21468258]
[1757048515379,6.31220714,4336.5,4336.4,0.21468258]
[1757048515605,6.09806032,4336.4,4336.3,0.004]
[1757048515792,6.59166032,4336.4,4336.3,0.004]
[1757048515983,6.69306032,4336.4,4336.3,0.004]
[1757048516309,2.305828,4336.9,4336.3,5.27319334]
[1757048516502,2.305828,4336.9,4336.4,0.65229334]
[1757048516810,2.305828,4336.9,4336.8,0.3015]
[1757048517116,2.305828,4336.9,4336.8,0.51619334]
[1757048517500,2.305828,4336.9,4336.8,0.21469334]
[1757048517910,0.792,4336.7,4336.3,3.85]
[1757048518229,5.30600714,4336.5,4336.4,0.21472249]
[1757048518429,2.30606032,4336.4,4336.3,0.004]
[1757048518606,2.30606032,4336.4,4336.3,0.21878107]
[1757048518920,2.40506032,4336.4,4336.3,0.21878107]
[1757048521024,2.30606032,4336.4,4336.3,0.95788107]
[1757048521408,2.40506032,4336.4,4336.3,0.21878107]
[1757048524129,2.40506032,4336.4,4336.3,0.21882179]
[1757048526334,5.52026032,4336.4,4336.3,0.21882179]
[1757048527403,5.52026032,4336.4,4336.3,0.21889218]
[1757048527600,5.52026032,4336.4,4336.3,0.004]
[1757048527601,10.37291385,4336.4,4336.3,0.004]
[1757048527838,6.0981135,4336.3,4336.2,0.004]
[1757048528299,6.1995135,4336.3,4336.2,0.004]
[1757048528505,7.0300135,4336.3,4336.2,0.004]
[1757048529922,7.12248354,4336.3,4336.2,0.004]
[1757048532022,6.78558354,4336.3,4336.2,0.004]
[1757048532449,6.29198354,4336.3,4336.2,0.004]
[1757048533034,6.19058354,4336.3,4336.2,0.004]
[1757048533224,6.29438354,4336.3,4336.2,0.004]
[1757048537317,6.75758354,4336.3,4336.2,0.004]
[1757048537522,6.29438354,4336.3,4336.2,0.004]
[1757048537724,10.15478354,4336.3,4336.2,0.004]
[1757048538422,2.51378354,4336.3,4336.2,0.7404]
[1757048538617,2.51378354,4336.3,4336.2,1.2107]
[1757048538823,5.51378354,4336.3,4336.2,1.2107]
[1757048539454,5.4213135,4336.3,4336.2,1.2107]
[1757048540466,3.0,4336.3,4336.2,1.2107]
[1757048540757,3.1152,4336.3,4336.2,1.2107]
[1757048542765,5.4213135,4336.3,4336.2,1.2107]
[1757048544166,5.4213135,4336.3,4336.2,1.42543358]
[1757048545866,9.08736703,4336.3,4336.2,0.004]
[1757048546073,10.34356703,4336.3,4336.2,0.004]
[1757048546280,10.43602575,4336.3,4336.2,0.004]
[1757048547186,10.77532575,4336.3,4336.2,0.004]
[1757048547371,11.06914645,4336.3,4336.2,0.004]
[1757048547575,10.72984645,4336.3,4336.2,0.004]
[1757048547740,11.06914645,4336.3,4336.2,0.004]
[1757048549272,10.15877222,4336.3,4336.2,0.004]
[1757048550771,10.25777222,4336.3,4336.2,0.004]
[1757048552770,10.72097222,4336.3,4336.2,0.004]
[1757048553061,11.06027222,4336.3,4336.2,0.004]
[1757048553304,10.72097222,4336.3,4336.2,0.004]
[1757048557398,11.35409292,4336.3,4336.2,0.004]
[1757048559698,6.09816668,4336.2,4336.1,0.004]
[1757048559893,10.11932021,4336.2,4336.1,0.004]
[1757048560209,10.22072021,4336.2,4336.1,0.004]
[1757048561604,6.09827306,4336.0,4335.9,0.004]
[1757048561782,10.06247306,4336.0,4335.9,0.004]
[1757048561986,10.16627306,4336.0,4335.9,0.004]
[1757048562308,10.25875209,4336.0,4335.9,0.004]
[1757048565009,10.71285209,4336.0,4335.9,0.004]
[1757048565809,10.25875209,4336.0,4335.9,0.004]
[1757048566219,10.25395209,4336.0,4335.9,0.004]
[1757048568012,7.15495209,4336.0,4335.9,0.2898]
[1757048568186,7.15495209,4336.0,4335.9,1.2072]
[1757048568387,10.15495209,4336.0,4335.9,1.2072]
[1757048573600,10.15495209,4336.0,4335.9,0.722]
[1757048573805,10.15495209,4336.0,4335.9,0.2898]
[1757048575043,6.30595209,4336.0,4335.9,0.2898]
[1757048575221,10.15295209,4336.0,4335.9,0.722]
[1757048576436,10.15295209,4336.0,4335.9,0.004]
[1757048576437,10.70605209,4336.0,4335.9,0.004]
[1757048576599,10.99986662,4336.0,4335.9,0.004]
[1757048576799,11.33916662,4336.0,4335.9,0.004]
[1757048577013,3.792,4335.9,4335.7,0.004]
[1757048577305,13.51243297,4335.8,4335.7,0.004]
[1757048577519,14.06793297,4335.8,4335.7,0.004]
[1757048577725,14.16041627,4335.8,4335.7,0.004]
[1757048579439,15.86041627,4335.8,4335.7,0.004]
[1757048579950,15.30491627,4335.8,4335.7,0.722]
[1757048580117,15.30491627,4335.8,4335.7,1.2072]
[1757048580321,15.30491627,4335.8,4335.7,0.722]
[1757048581124,10.66591627,4335.8,4335.7,1.2072]
[1757048581344,14.62811627,4335.8,4335.7,1.2072]
[1757048581546,15.42011627,4335.8,4335.7,1.2072]
[1757048582963,15.42011627,4335.8,4335.7,0.722]
[1757048583339,15.42011627,4335.8,4335.7,0.2898]
[1757048584269,15.42011627,4335.8,4335.7,0.722]
[1757048585064,15.51911627,4335.8,4335.7,0.004]
[1757048585270,16.2670308,4335.8,4335.7,0.004]
[1757048585634,6.09843264,4335.7,4335.6,1e-08]
[1757048586071,6.19983264,4335.7,4335.6,1e-08]
[1757048586773,6.31791043,4335.7,4335.6,1e-08]
[1757048587070,6.19983264,4335.7,4335.6,1e-08]
[1757048587484,10.54601213,4335.7,4335.6,1e-08]
[1757048587643,10.66063342,4335.7,4335.6,1e-08]
[1757048591387,10.54601213,4335.7,4335.6,1e-08]
[1757048593357,10.44461213,4335.7,4335.6,1e-08]
[1757048593685,6.09843264,4335.7,4335.6,1e-08]
[1757048594888,6.20223264,4335.7,4335.6,1e-08]
[1757048597989,6.09843264,4335.7,4335.6,1e-08]
[1757048598490,6.09843264,4335.7,4335.6,0.45250001]
[1757048600474,6.09943264,4335.7,4335.6,0.45250001]
[1757048602683,6.09943264,4335.7,4335.6,0.76570001]
[1757048602886,6.09943264,4335.7,4335.6,0.31320001]
[1757048603091,0.1162,4335.7,4335.6,1.24730001]
[1757048603409,0.1162,4335.7,4335.6,1.58834707]
[1757048603867,2.42263264,4335.7,4335.6,1.58834707]
[1757048604196,0.1162,4335.7,4335.6,1.46281707]
[1757048604574,2.42263264,4335.7,4335.6,1.4626788]
[1757048605103,0.1162,4335.7,4335.6,1.4626788]
[1757048605596,2.42263264,4335.7,4335.6,1.4626788]
[1757048605986,0.1162,4335.7,4335.6,1.4626788]
[1757048606406,2.42263264,4335.7,4335.6,1.4626788]
[1757048606901,0.1162,4335.7,4335.6,1.4626788]
[1757048608176,2.42263264,4335.7,4335.6,1.46254076]
[1757048609270,2.42263264,4335.7,4335.6,1.24730001]
[1757048609703,0.1162,4335.7,4335.6,1.24730001]
[1757048610302,0.001,4335.7,4335.6,3.89444454]
[1757048610501,0.001,4335.7,4335.6,4.03270939]
[1757048610802,0.001,4335.7,4335.6,9.55564454]
[1757048614077,0.001,4335.7,4335.6,9.67184454]
[1757048614513,0.001,4335.7,4335.6,16.07184454]
[1757048616006,0.001,4335.7,4335.6,12.22584454]
[1757048616211,0.001,4335.7,4335.6,15.95664454]
[1757048616981,0.001,4335.7,4335.6,16.13183029]
[1757048621311,0.001,4335.7,4335.6,12.28483029]
[1757048621682,0.001,4335.7,4335.6,16.13083029]
[1757048623210,0.001,4335.7,4335.6,18.39983028]
[1757048623413,0.001,4335.7,4335.6,18.22464453]
[1757048625311,0.001,4335.7,4335.6,14.37864453]
[1757048625513,0.001,4335.7,4335.6,11.0125287]
[1757048625700,0.001,4335.7,4335.6,15.3016287]
[1757048626097,0.001,4335.7,4335.6,11.4566287]
[1757048626293,0.001,4335.7,4335.6,8.9016287]
[1757048626922,0.001,4335.7,4335.6,8.9026287]
[1757048627127,0.001,4335.7,4335.6,9.15039097]
[1757048629712,0.001,4335.7,4335.6,9.60379097]
[1757048633428,0.001,4335.7,4335.6,9.15039097]
[1757048640846,0.001,4335.7,4335.6,11.9102768]
[1757048642319,0.001,4335.7,4335.6,12.00270433]
[1757048644541,0.001,4335.7,4335.6,18.40270433]
[1757048645835,0.001,4335.7,4335.6,18.18757563]
[1757048646457,0.001,4335.7,4335.6,18.4026359]
[1757048646753,0.001,4335.7,4335.6,18.18757563]
[1757048647453,0.001,4336.1,4336.0,2.30627306]
[1757048647618,0.001,4336.1,4336.0,6.6095357]
[1757048647821,0.001,4336.1,4336.0,7.9269357]
[1757048648019,0.001,4336.1,4336.0,14.3269357]
[1757048649756,0.001,4336.1,4336.0,14.54200899]
[1757048650558,0.001,4336.1,4336.0,14.08860899]
[1757048651463,0.001,4336.1,4336.0,16.74310898]
[1757048651770,0.001,4336.1,4336.0,16.10871986]
[1757048652268,0.001,4336.1,4336.0,19.96571986]
[1757048652465,0.001,4336.1,4336.0,16.96571986]
[1757048652837,0.001,4336.1,4336.0,9.89491987]
[1757048653162,0.001,4336.1,4336.0,13.35580899]
[1757048653545,0.001,4336.1,4336.0,7.26370899]
[1757048653860,0.001,4336.1,4336.0,7.72470899]
[1757048654627,0.001,4336.1,4336.0,8.20850899]
[1757048655641,0.001,4336.1,4336.0,8.30092456]
[1757048655841,0.001,4336.1,4336.0,14.70092456]
[1757048659538,0.001,4336.1,4336.0,14.60850899]
[1757048666876,0.001,4336.1,4336.0,9.49780899]
[1757048667050,0.001,4336.1,4336.0,13.35453791]
[1757048667451,0.001,4336.1,4336.0,14.12343791]
[1757048668062,0.001,4336.1,4336.0,13.35453791]
[1757048668274,0.1,4336.1,4336.0,13.35453791]
[1757048669072,0.001,4336.1,4336.0,13.35453791]
[1757048669379,0.001,4336.1,4336.0,14.12343791]
[1757048669578,0.001,4336.1,4336.0,13.35453791]
[1757048673673,0.001,4336.1,4336.0,14.12343791]
[1757048673972,0.001,4336.2,4336.1,5.30621987]
[1757048674175,0.001,4336.2,4336.1,8.68780319]
[1757048674377,0.001,4336.2,4336.1,8.99570319]
[1757048674575,0.001,4336.2,4336.1,15.39570319]
[1757048675284,0.001,4336.2,4336.1,15.48811086]
[1757048677564,0.001,4336.2,4336.1,15.48835061]
[1757048677764,0.001,4336.2,4336.1,15.48835162]
[1757048678662,0.001,4336.2,4336.1,14.54355162]
[1757048678861,0.001,4336.2,4336.1,14.23565162]
[1757048679187,0.001,4336.2,4336.1,16.50465161]
[1757048679778,0.1,4336.2,4336.1,20.27124394]
[1757048680124,0.001,4336.2,4336.1,20.27124394]
[1757048680464,0.001,4336.2,4336.1,17.27124394]
[1757048681865,0.595,4336.2,4336.1,11.19026283]
[1757048682181,0.595,4336.2,4336.1,8.65026283]
[1757048682365,0.1,4336.2,4336.1,8.65026283]
[1757048683296,0.001,4336.2,4336.1,9.90596283]
[1757048683464,0.001,4336.2,4336.1,11.89390642]
[1757048683879,0.001,4336.3,4336.2,2.30616668]
[1757048684088,0.001,4336.3,4336.2,2.99510965]
[1757048684270,0.001,4336.3,4336.2,6.04590964]
[1757048684597,0.001,4336.3,4336.2,6.13833428]
[1757048684896,0.001,4336.3,4336.2,13.96758937]
[1757048690685,0.001,4336.3,4336.2,13.02558937]
[1757048690988,0.001,4336.3,4336.2,13.96758937]
[1757048691510,0.001,4336.3,4336.2,13.02558937]
[1757048691676,0.001,4336.3,4336.2,12.61947914]
[1757048691881,0.595,4336.3,4336.2,12.61947914]
[1757048692204,0.595,4336.3,4336.2,10.08547914]
[1757048692411,0.1,4336.3,4336.2,10.08547914]
[1757048692811,0.1,4336.3,4336.2,16.48547914]
[1757048693307,0.001,4336.3,4336.2,16.48547914]
[1757048693513,0.595,4336.3,4336.2,16.48547914]
[1757048694010,0.1,4336.3,4336.2,16.48547914]
[1757048696513,0.1,4336.3,4336.2,18.18447914]
[1757048697110,0.595,4336.3,4336.2,6.48922405]
[1757048697322,0.9343,4336.3,4336.2,10.35322405]
[1757048697484,0.595,4336.3,4336.2,10.35322405]
[1757048699585,0.001,4336.3,4336.2,10.35322405]
[1757048700010,0.001,4336.3,4336.2,10.66692405]
[1757048700318,0.001,4336.3,4336.2,13.67296376]
[1757048700681,0.001,4336.3,4336.2,13.20486376]
[1757048701101,0.001,4336.3,4336.2,12.41726376]
[1757048701315,0.595,4336.3,4336.2,4.29825737]
[1757048701520,0.595,4336.3,4336.2,8.16125737]
[1757048702225,0.595,4336.3,4336.2,10.46742405]
[1757048704518,0.595,4336.3,4336.2,10.25236667]
[1757048704727,0.595,4336.3,4336.2,10.46742345]
[1757048706521,0.595,4336.3,4336.2,8.16125677]
[1757048706715,0.1,4336.3,4336.2,10.46742345]
[1757048707118,0.1,4336.3,4336.2,8.16125677]
[1757048707434,0.1,4336.3,4336.2,10.46742345]
[1757048709723,0.1,4336.3,4336.2,10.25236667]
[1757048710114,0.1,4336.3,4336.2,10.4674397]
[1757048710732,0.1,4336.3,4336.2,10.25236667]
[1757048710910,0.1,4336.3,4336.2,10.46744005]
[1757048711227,0.1,4336.3,4336.2,10.25236667]
[1757048712617,0.1,4336.3,4336.2,10.46743497]
[1757048713147,0.001,4336.3,4336.2,10.46743497]
[1757048713353,0.001,4336.3,4336.2,10.4674197]
[1757048715449,0.001,4336.3,4336.2,12.22115877]
[1757048715746,0.001,4336.3,4336.2,12.53455877]
[1757048715936,0.001,4336.3,4336.2,12.22115877]
[1757048717049,0.001,4336.3,4336.2,11.77655877]
[1757048717644,0.001,4336.3,4336.2,10.4674197]
[1757048719422,0.001,4336.3,4336.2,10.7808197]
[1757048719642,0.001,4336.3,4336.2,11.2254197]
[1757048720852,0.001,4336.3,4336.2,11.31784723]
[1757048721153,0.001,4336.3,4336.2,10.55984723]
[1757048721953,0.2965,4336.3,4336.2,8.25368055]
[1757048722120,0.9367,4336.3,4336.2,1.91405303]
[1757048722323,3.5393135,4336.3,4336.2,5.77105303]
[1757048723026,3.5393135,4336.3,4336.2,0.21505303]
[1757048723227,7.3313135,4336.3,4336.2,0.21505303]
[1757048723534,6.09816668,4336.2,4336.1,0.004]
[1757048724031,7.03376668,4336.2,4336.1,0.004]
[1757048728528,10.89176668,4336.2,4336.1,0.004]
[1757048729029,7.03376668,4336.2,4336.1,0.004]
[1757048730146,10.89076668,4336.2,4336.1,0.004]
[1757048730926,3.09837944,4335.8,4335.7,0.004]
[1757048731127,6.21357944,4335.8,4335.7,0.004]
[1757048731333,7.14927944,4335.8,4335.7,0.004]
[1757048731563,7.24175826,4335.8,4335.7,0.004]
[1757048732131,11.10175826,4335.8,4335.7,0.004]
[1757048733755,6.09843264,4335.7,4335.6,1e-08]
[1757048733967,6.24323264,4335.7,4335.6,1e-08]
[1757048734140,7.03263264,4335.7,4335.6,1e-08]
[1757048735447,6.88783264,4335.7,4335.6,1e-08]
[1757048735634,7.03403264,4335.7,4335.6,1e-08]
[1757048736062,10.74983264,4335.7,4335.6,1e-08]
[1757048736240,9.57663264,4335.7,4335.6,1e-08]
[1757048736443,6.28363264,4335.7,4335.6,1e-08]
[1757048736636,10.36813264,4335.7,4335.6,1e-08]
[1757048737166,2.42163264,4335.7,4335.6,1.24850001]
[1757048740171,2.42163264,4335.7,4335.6,0.75800001]
[1757048740844,0.1152,4335.7,4335.6,1.24000001]
[1757048741241,2.42163264,4335.7,4335.6,1.24000001]
[1757048742439,5.42163264,4335.7,4335.6,1.24000001]
[1757048743385,5.42163264,4335.7,4335.6,1e-08]
[1757048743590,6.31263264,4335.7,4335.6,1e-08]
[1757048743883,6.76403264,4335.7,4335.6,1e-08]
[1757048744844,6.31263264,4335.7,4335.6,1e-08]
[1757048747374,10.17463264,4335.7,4335.6,1e-08]
[1757048751283,10.62603264,4335.7,4335.6,1e-08]
[1757048755892,10.17463264,4335.7,4335.6,1e-08]
[1757048756788,10.62603264,4335.7,4335.6,1e-08]
[1757048757995,10.07563264,4335.7,4335.6,1e-08]
[1757048759699,10.07563264,4335.7,4335.6,0.30100001]
[1757048759903,10.07563264,4335.7,4335.6,0.73240001]
[1757048761189,10.07563264,4335.7,4335.6,1.21440001]
[1757048762285,5.42163264,4335.7,4335.6,1.21440001]
[1757048762688,0.1152,4335.7,4335.6,1.21440001]
[1757048762872,0.1152,4335.7,4335.6,1.55182042]
[1757048763285,0.1152,4335.7,4335.6,1.42958042]
[1757048763501,0.001,4336.1,4335.6,1.42958042]
[1757048763699,0.001,4336.1,4335.7,5.13496185]
[1757048763900,0.001,4336.1,4336.0,2.42147306]
[1757048764216,0.001,4336.1,4336.0,2.93765347]
[1757048764500,0.001,4336.1,4336.0,4.40846514]
[1757048764710,0.001,4336.1,4336.0,8.26646514]
[1757048764870,0.001,4336.1,4336.0,5.96019208]
[1757048767016,0.001,4336.1,4336.0,8.26646514]
[1757048768831,0.001,4336.1,4336.0,8.38366514]
[1757048771322,0.001,4336.1,4336.0,14.78366514]
[1757048773531,0.001,4336.1,4336.0,14.56848473]
[1757048774841,0.001,4336.1,4336.0,17.56848473]
[1757048775134,0.001,4336.1,4336.0,17.68675008]
[1757048775439,0.001,4336.1,4336.0,17.9005387]
[1757048775923,0.001,4336.1,4336.0,17.68675008]
[1757048776326,0.001,4336.1,4336.0,17.78227424]
[1757048776726,0.001,4336.1,4336.0,17.78227258]
[1757048779731,0.001,4336.1,4336.0,19.93407257]
[1757048780141,0.001,4336.1,4336.0,19.93393331]
[1757048787026,0.001,4336.1,4336.0,19.72028472]
[1757048787228,0.001,4336.1,4336.0,19.93402525]
[1757048790756,0.001,4336.1,4336.0,19.93437407]
[1757048792452,0.001,4336.1,4336.0,20.02677939]
[1757048795134,0.001,4336.6,4336.5,2.30600714]
[1757048795340,0.001,4336.6,4336.5,8.87020601]
[1757048795542,0.1,4336.6,4336.5,8.87020601]
[1757048795758,0.1,4336.6,4336.5,15.27020601]
[1757048796870,0.5706,4336.6,4336.5,15.26920601]
[1757048797234,0.1,4336.6,4336.5,15.26920601]
[1757048797747,0.1,4336.6,4336.5,15.270013]
[1757048797748,0.001,4336.6,4336.5,15.270013]
[1757048797951,0.1024,4336.6,4336.5,15.270013]
[1757048798543,0.001,4336.6,4336.5,16.016013]
[1757048798969,0.001,4336.6,4336.5,15.270013]
[1757048799338,0.1,4336.6,4336.5,15.270013]
[1757048799538,0.598,4336.6,4336.5,15.270013]
[1757048800480,0.1,4336.6,4336.5,15.270013]
[1757048800982,0.001,4336.6,4336.5,16.003113]
[1757048801182,0.001,4336.6,4336.5,18.27011299]
[1757048801981,0.001,4336.6,4336.5,17.82561299]
[1757048802164,0.001,4336.6,4336.5,18.73041299]
[1757048802973,1e-08,4336.8,4336.7,2.3059008]
[1757048803172,1e-08,4336.8,4336.7,10.9267641]
[1757048803392,0.001,4337.0,4336.9,2.30579446]
[1757048803597,0.001,4337.0,4336.9,18.05874873]
[1757048803807,0.001,4337.0,4336.9,19.34429079]
[1757048804486,0.001,4337.5,4336.9,19.34429079]
[1757048804487,0.001,4337.5,4337.4,2.30552865]
[1757048804813,1e-08,4337.8,4337.7,2.3053692]
[1757048804968,1e-08,4337.8,4337.7,9.68091923]
[1757048805171,1e-08,4337.8,4337.7,17.07786554]
[1757048805674,1e-08,4337.8,4337.7,17.24856947]
[1757048806272,1e-08,4337.8,4337.7,12.93926947]
[1757048806471,1e-08,4337.8,4337.7,18.78930822]
[1757048807299,1e-08,4337.8,4337.7,19.24960822]
[1757048808900,1e-08,4337.8,4337.7,15.78930822]
[1757048809424,1e-08,4337.8,4337.7,19.24960822]
[1757048809816,1e-08,4337.8,4337.7,20.04160822]
[1757048810198,1e-08,4337.8,4337.7,20.13397066]
[1757048811716,1e-08,4337.8,4337.7,20.13318126]
[1757048812100,1e-08,4338.4,4338.1,2.30513236]
[1757048812300,1e-08,4338.4,4338.3,0.1152]
[1757048812614,1e-08,4338.4,4338.3,6.7380078]
[1757048812925,1e-08,4338.4,4338.3,13.5594573]
[1757048814840,1e-08,4338.4,4338.3,15.8903573]
[1757048815008,1e-08,4338.4,4338.3,18.44686527]
[1757048815331,1e-08,4338.4,4338.3,18.89136527]
[1757048816034,1e-08,4338.4,4338.3,18.44686527]
[1757048816514,1e-08,4338.4,4338.3,19.35166527]
[1757048818110,1e-08,4338.4,4338.3,22.41066526]
[1757048818305,1e-08,4338.4,4338.3,22.29546526]
[1757048818506,1e-08,4338.4,4338.3,22.41066526]
[1757048820734,1e-08,4338.4,4338.3,18.95036526]
[1757048820933,1e-08,4338.4,4338.3,21.95036526]
[1757048821513,1e-08,4338.4,4338.3,22.41066526]
[1757048823343,1e-08,4338.8,4338.7,2.30483785]
[1757048823548,1e-08,4338.8,4338.7,12.42296875]
[1757048823714,1e-08,4338.8,4338.7,13.59332038]
[1757048824045,1e-08,4338.8,4338.7,20.90003173]
[1757048824411,1e-08,4338.8,4338.7,20.78483173]
[1757048824618,1e-08,4338.8,4338.7,20.90003173]
[1757048824821,1e-08,4338.8,4338.7,20.90002688]
[1757048825713,1e-08,4338.8,4338.7,20.99237161]
[1757048828544,1e-08,4338.8,4338.7,20.53207161]
[1757048828755,1e-08,4338.8,4338.7,20.08757161]
[1757048829472,0.29550001,4338.8,4338.7,12.88697162]
[1757048829629,0.29550001,4338.8,4338.7,16.64662689]
[1757048830644,0.29550001,4338.8,4338.7,16.64562689]
[1757048830977,0.79070001,4338.8,4338.7,16.64562689]
[1757048831335,0.79070001,4338.8,4338.7,12.88465129]
[1757048831573,0.93540001,4338.8,4338.7,6.72881344]
[1757048831878,0.93540001,4338.8,4338.7,4.18481344]
[1757048832035,0.93540001,4338.8,4338.7,4.18681344]
[1757048832237,0.93540001,4338.8,4338.7,0.32881344]
[1757048832481,0.93540001,4338.8,4338.7,4.18681344]
[1757048832965,0.93540001,4338.8,4338.7,3.9732]
[1757048835687,0.79070001,4338.8,4338.7,6.27803785]
[1757048835980,0.93540001,4338.8,4338.7,3.9732]
[1757048838880,0.93540001,4338.8,4338.7,3.9792]
[1757048840280,1e-08,4338.8,4338.7,6.28403785]
[1757048840504,1e-08,4338.8,4338.7,6.91244163]
[1757048842971,1e-08,4338.8,4338.7,6.28403785]
[1757048843968,1e-08,4338.8,4338.7,12.68243185]
[1757048844508,1e-08,4338.8,4338.7,6.28243185]
[1757048844868,0.29400001,4338.8,4338.7,6.28243185]
[1757048845069,0.29400001,4338.8,4338.7,3.977594]
[1757048845275,0.78920001,4338.8,4338.7,3.977594]
[1757048845490,0.78920001,4338.8,4338.7,6.28243185]
[1757048846312,0.29400001,4338.8,4338.7,6.28243185]
[1757048846774,0.78920001,4338.8,4338.7,3.975594]
[1757048847405,0.93540001,4338.8,4338.3,0.004]
[1757048847590,2.30499723,4338.4,4338.3,0.004]
[1757048847790,2.30499723,4338.4,4338.3,3.31]
[1757048848011,6.24039723,4338.4,4338.3,3.31]
[1757048848509,3.9354,4338.4,4338.3,3.31]
[1757048849506,3.7907,4338.4,4338.3,3.31]
[1757048849811,0.2955,4338.4,4338.3,3.31]
[1757048850828,1e-08,4338.8,4338.3,3.31]
[1757048851175,1e-08,4338.8,4338.4,0.4402]
[1757048851475,1e-08,4338.8,4338.7,2.70963785]
[1757048851682,1e-08,4338.8,4338.7,6.57963785]
[1757048852010,1e-08,4338.8,4338.7,7.01983785]
[1757048852775,1e-08,4338.8,4338.7,6.57963785]
[1757048852978,1e-08,4338.8,4338.7,7.01983785]
[1757048853415,1e-08,4338.8,4338.7,8.05315982]
[1757048855994,0.29550001,4338.8,4338.7,7.32335982]
[1757048856387,1e-08,4338.8,4338.7,7.32335982]
[1757048856588,0.00100001,4338.8,4338.7,3.9852]
[1757048856790,0.00100001,4338.8,4338.7,6.29003785]
[1757048857515,0.00100001,4338.8,4338.7,7.01983785]
[1757048860520,0.00100001,4338.8,4338.7,6.57963785]
[1757048861834,0.00100001,4338.8,4338.7,7.04333785]
[1757048863922,0.00100001,4338.8,4338.7,9.16592515]
[1757048867818,0.00100001,4338.8,4338.7,11.43292514]
[1757048868038,0.00100001,4338.8,4338.7,14.43292514]
[1757048868482,0.00100001,4338.8,4338.7,20.83292514]
[1757048870545,0.00100001,4338.8,4338.7,22.90283275]
[1757048871073,0.00100001,4338.8,4338.7,23.69483275]
[1757048871589,0.00100001,4338.8,4338.7,23.78717109]
[1757048871753,0.001,4338.9,4338.8,3.09678473]
[1757048871956,0.001,4338.9,4338.8,6.34904054]
[1757048872157,0.001,4338.9,4338.8,6.6406927]
[1757048872357,0.001,4338.9,4338.8,13.0406927]
[1757048873888,0.001,4338.9,4338.8,16.9116927]
[1757048874378,0.001,4338.9,4338.8,17.08309754]
[1757048880105,0.001,4338.9,4338.8,17.19829754]
[1757048881403,0.001,4339.7,4339.6,2.30435984]
[1757048881404,1e-08,4339.7,4339.6,2.30435984]
[1757048881616,1e-08,4339.7,4339.6,7.98555984]
[1757048881815,1e-08,4339.7,4339.6,9.26155984]
[1757048882112,0.4631,4340.9,4339.7,3.0]
[1757048882406,0.4631,4340.9,4340.7,2.30377588]
[1757048882610,0.4631,4340.9,4340.7,7.98697588]
[1757048882812,0.56351013,4340.8,4340.7,7.98697588]
[1757048883276,0.10041013,4340.8,4340.7,7.98697588]
[1757048884601,0.90281013,4340.8,4340.7,1.8132]
[1757048884908,0.90281013,4340.8,4340.7,5.6822]
[1757048885489,0.90281013,4340.8,4340.7,7.98597588]
[1757048885906,0.56351013,4340.8,4340.7,7.98597588]
[1757048887018,0.10041013,4340.8,4340.7,7.98597588]
[1757048887419,0.10041013,4340.8,4340.7,8.94565664]
[1757048888913,0.10041013,4340.8,4340.7,7.98597588]
[1757048889214,0.28761013,4340.8,4340.7,7.98597588]
[1757048889791,0.92651013,4340.8,4340.7,1.8132]
[1757048890002,0.92651013,4340.8,4340.7,5.6802]
[1757048890321,0.92651013,4340.8,4340.7,7.98397588]
[1757048890706,0.77261013,4340.8,4340.7,7.98397588]
[1757048891042,0.28861013,4340.8,4340.7,7.98397588]
[1757048891192,0.00241013,4340.8,4340.7,7.98397588]
[1757048891392,0.28731013,4340.8,4340.7,7.98397588]
[1757048892429,0.00241013,4340.8,4340.7,8.72137588]
[1757048892594,0.00241013,4340.8,4340.7,9.82389913]
[1757048893623,0.00241013,4340.8,4340.7,9.08649913]
[1757048895420,0.58641013,4340.8,4340.7,9.08649913]
[1757048895623,0.58641013,4340.8,4340.7,7.98397588]
[1757048896192,0.10141013,4340.8,4340.7,7.98397588]
[1757048900127,0.00241013,4340.8,4340.7,7.98397588]
[1757048900437,0.28861013,4340.8,4340.7,7.98397588]
[1757048901438,0.00241013,4340.8,4340.7,7.98397588]
[1757048903154,0.10141013,4340.8,4340.7,7.98397588]
[1757048905847,0.58641013,4340.8,4340.7,1.8132]
[1757048906018,0.58641013,4340.8,4340.7,5.6732]
[1757048906533,0.10141013,4340.8,4340.7,5.6732]
[1757048908814,0.58641013,4340.8,4340.7,1.8132]
[1757048909116,0.92571013,4340.8,4340.7,5.6722]
[1757048909539,0.10141013,4340.8,4340.7,5.6722]
[1757048910614,0.00241013,4340.8,4340.7,5.6722]
[1757048912449,0.10141013,4340.8,4340.7,5.6722]
[1757048914248,0.92571013,4340.8,4340.7,5.556]
[1757048914480,0.92571013,4340.8,4340.7,1.698]
[1757048914754,0.92571013,4340.8,4340.7,5.555]
[1757048915359,0.92571013,4340.8,4340.7,1.698]
[1757048915673,3.22943294,4340.8,4340.7,5.555]
[1757048916356,0.92571013,4340.8,4340.0,1.697]
[1757048916522,0.485,4340.7,4340.1,3.857]
[1757048916843,0.1152,4340.5,4340.1,3.857]
[1757048917832,0.34171013,4340.8,4340.3,0.1152]
[1757048917833,0.00241013,4340.8,4340.3,0.1152]
[1757048918160,0.00241013,4340.8,4340.4,4.3034]
[1757048918363,0.00241013,4340.8,4340.7,0.293]
[1757048918564,0.00241013,4340.8,4340.7,3.863]
[1757048918768,0.28861013,4340.8,4340.7,3.863]
[1757048919180,0.00241013,4340.8,4340.7,3.863]
[1757048919734,0.00241013,4340.8,4340.7,4.1677]
[1757048919952,0.00241013,4340.8,4340.7,9.20387588]